fUSD/lending_fUSD_20260217
["ID","MTS","AMOUNT","RATE_DAILY","PERIOD"]
[405814408,1771333850271,-150.0,0.00021649,2]
[405814410,1771333850280,-150.0,0.00021649,2]
[405814412,1771333850288,-1164.0,0.00021649,2]
[405814414,1771333850298,-3491.0,0.00021649,2]
[405814416,1771333850307,-1338.0,0.00021649,2]
[405814418,1771333850316,-617.0,0.00021649,2]
[405814420,1771333850325,-150.0,0.00021698,4]
[405814422,1771333850334,-1324.84547167,0.00021807,5]
[405814424,1771333850343,-3043.88,0.00021918,2]
[405814426,1771333850352,-5000.0,0.00021918,2]
[405814428,1771333850362,-4331.07,0.00021918,30]
[405814430,1771333850371,-800.0,0.00021918,2]
[405814432,1771333850380,-800.0,0.00021918,2]
[405814434,1771333850389,-800.0,0.00021918,2]
[405814436,1771333850399,-800.0,0.00021918,2]
[405814437,1771333850407,-800.0,0.00021918,2]
[405814438,1771333850416,-800.0,0.00021918,2]
[405814439,1771333850425,-800.0,0.00021918,2]
[405814440,1771333850435,-800.0,0.00021918,2]
[405814441,1771333850443,-262.13935403,0.00021973,4]
[405814442,1771333850452,-300.0,0.00021999,2]
[405814443,1771333850461,-666.0,0.00021999,2]
[405814444,1771333850470,-300.0,0.00021999,2]
[405814445,1771333850478,-666.0,0.00021999,2]
[405814446,1771333850487,-1145.15,0.00022,7]
[405814448,1771333850496,-212046.95439905,0.00022,4]
[405814450,1771333850505,-131901.41064384,0.00022,2]
[405814452,1771333850514,-455.86692894,0.00022,120]
[405814454,1771333850523,-3852.03307706,0.00022,2]
[405814456,1771333850532,-2794.0419246,0.00022,7]
[405814458,1771333850541,-435.55,0.00022,2]
[405814460,1771333850551,-415805.46,0.00022,2]
[405814462,1771333850560,-909.939245,0.00022,2]
[405814464,1771333850569,-909.939245,0.00022,2]
[405814466,1771333850578,-909.939245,0.00022,2]
[405814468,1771333850587,-909.939245,0.00022,2]
[405814470,1771333850596,-1783.60803,0.00022,2]
[405814472,1771333850604,-1783.60803,0.00022,2]
[405814474,1771333850613,-1783.60803,0.00022,2]
[405814476,1771333850622,-1783.60803,0.00022,2]
[405814478,1771333850632,-457.741827,0.00022,2]
[405814479,1771333850641,-457.741827,0.00022,2]
[405814481,1771333850650,-457.741827,0.00022,2]
[405814484,1771333850659,-457.741827,0.00022,2]
[405814485,1771333850668,-1000.0,0.00022,2]
[405814486,1771333850676,-1069.171485,0.00022,2]
[405814488,1771333850685,-167.064397,0.00022,2]
[405814490,1771333850695,-167.064397,0.00022,2]
[405814492,1771333850703,-167.064397,0.00022,2]
[405814494,1771333850713,-167.064397,0.00022,2]
[405814496,1771333850722,-151.0,0.00022,2]
[405814498,1771333850731,-151.0,0.00022,2]
[405814500,1771333850740,-151.0,0.00022,2]
[405814502,1771333850749,-151.0,0.00022,2]
[405814504,1771333850759,-151.0,0.00022,2]
[405814505,1771333850768,-151.0,0.00022,2]
[405814507,1771333850778,-360.45457926,0.00022222,30]
[405814509,1771333850787,-31210.8353276,0.00022248,2]
[405814511,1771333850797,-1751.06105486,0.00022329,30]
[405814513,1771333850806,-1751.06105486,0.00022411,30]
[405814515,1771333850815,-7397.51,0.00022466,2]
[405814517,1771333850825,-150.0,0.00022472,7]
[405814519,1771333850835,-1751.06105486,0.00022493,30]
[405814520,1771333850844,-502.75243677,0.00022499,2]
[405814522,1771333850856,-35620.91184209,0.000225,2]
[405814524,1771333850868,-151.0,0.00022548,8]
[405814526,1771333850878,-3617.89176601,0.000226,2]
[405814528,1771333850887,-1751.06105486,0.00022603,30]
[405814530,1771333850897,-1751.06105486,0.00022685,30]
[405814532,1771333850906,-583.69347785,0.00022746,7]
[405814534,1771333850915,-1751.06105486,0.00022767,30]
[405814536,1771333850924,-300.0,0.00022799,2]
[405814538,1771333850933,-415805.46,0.000228,2]
[405814540,1771333850944,-2045.7,0.00022864,2]
[405814542,1771333850953,-502.288578,0.00022873,2]
[405814544,1771333850963,-1751.06105486,0.00022877,30]
[405814546,1771333850972,-1751.06105486,0.00022959,30]
[405814548,1771333850981,-300.0,0.00022999,2]
[405814550,1771333850991,-1000.0,0.00023,14]
[405814552,1771333851000,-304277.15551043,0.00023,2]
[405814554,1771333851009,-996.68607993,0.00023,2]
[405814556,1771333851018,-160.0,0.00023,3]
[405814558,1771333851027,-160.0,0.00023,3]
[405814560,1771333851036,-160.0,0.00023,2]
[405814562,1771333851045,-1751.06105486,0.00023041,30]
[405814564,1771333851055,-666.0,0.00023099,2]
[405814566,1771333851064,-300.0,0.00023099,2]
[405814567,1771333851073,-1751.06105486,0.00023123,30]
[405814569,1771333851082,-200.0,0.00023207,30]
[405814571,1771333851092,-525.95039992,0.00023208,2]
[405814573,1771333851100,-1751.06105486,0.00023233,30]
[405814575,1771333851114,-302.0,0.000233,2]
[405814577,1771333851124,-840.0,0.000233,2]
[405814579,1771333851134,-309.0,0.000233,2]
[405814581,1771333851143,-1751.06105486,0.00023315,30]
[405814583,1771333851154,-415805.46,0.000234,2]
[405814586,1771333851167,-1209.0,0.00023551,2]
[405814587,1771333851177,-2452.0,0.00023585,2]
[405814589,1771333851186,-5973.0,0.00023585,2]
[405814591,1771333851195,-300.0,0.00023699,2]
[405814593,1771333851205,-1145.15,0.000237,7]
[405814595,1771333851214,-28698.0,0.00023973,2]
[405814597,1771333851223,-3600.0,0.00024,2]
[405814599,1771333851234,-1239.88954826,0.00024,2]
[405814601,1771333851243,-200.0,0.00024,120]
[405814603,1771333851251,-415.5066665,0.00024124,2]
[405814605,1771333851260,-804.17102365,0.00024124,2]
[405814607,1771333851269,-423.59034657,0.0002421,2]
[405814609,1771333851279,-3710.81446639,0.0002421,2]
[405814611,1771333851287,-1930.66,0.000243,14]
[405814613,1771333851296,-360.45457926,0.00024444,30]
[405814615,1771333851305,-415805.46,0.000245,2]
[405814617,1771333851314,-666.0,0.00024599,2]
[405814619,1771333851323,-151.0,0.000246,2]
[405814621,1771333851333,-157.404271,0.000246,2]
[405814623,1771333851342,-157.404271,0.000246,2]
[405814625,1771333851351,-157.404271,0.000246,2]
[405814627,1771333851362,-157.404271,0.000246,2]
[405814629,1771333851371,-150.0,0.00024649,2]
[405814631,1771333851380,-150.0,0.00024649,2]
[405814633,1771333851389,-150.0,0.00024649,2]
[405814635,1771333851398,-150.0,0.00024649,2]
[405814637,1771333851407,-150.0,0.00024649,2]
[405814639,1771333851416,-150.0,0.00024649,2]
[405814641,1771333851425,-150.0,0.00024649,2]
[405814643,1771333851434,-150.0,0.00024649,2]
[405814645,1771333851443,-150.0,0.00024649,2]
[405814646,1771333851453,-1164.0,0.00024649,2]
[405814648,1771333851463,-3491.0,0.00024649,2]
[405814650,1771333851472,-1338.0,0.00024649,2]
[405814652,1771333851481,-617.0,0.00024649,2]
[405814654,1771333851490,-151.0,0.00024658,2]
[405814656,1771333851500,-151.0,0.00024658,2]
[405814658,1771333851510,-151.0,0.00024658,2]
[405814661,1771333851520,-151.0,0.00024658,2]
[405814663,1771333851529,-1000.0,0.00024658,2]
[405814665,1771333851539,-896.23,0.00024658,2]
[405814667,1771333851548,-150.0,0.00024658,2]
[405814668,1771333851556,-2544.26230201,0.0002469,2]
[405814670,1771333851566,-300.0,0.00024699,10]
[405814672,1771333851575,-289.007678,0.000247,2]
[405814674,1771333851585,-151.0,0.000247,2]
[405814677,1771333851594,-151.0,0.000247,2]
[405814678,1771333851603,-153.093174,0.000247,2]
[405814680,1771333851614,-216.0,0.0002493,30]
[405814682,1771333851623,-500.0,0.00024932,2]
[405814684,1771333851633,-500.0,0.00024932,2]
[405814686,1771333851642,-26268.60626168,0.00024987,5]
[405814688,1771333851651,-300.0,0.00024999,10]
[405814690,1771333851661,-1114.88415864,0.00025,60]
[405814692,1771333851670,-1115.75114374,0.00025,2]
[405814694,1771333851679,-207.85277651,0.00025,2]
[405814696,1771333851688,-133485.91910959,0.00025,60]
[405814698,1771333851698,-1787.79999521,0.00025,2]
[405814700,1771333851707,-1615.98229692,0.00025,30]
[405814702,1771333851716,-18505.23820755,0.00025,2]
[405814704,1771333851725,-540.0,0.00025,2]
[405814706,1771333851734,-611.91107535,0.00025,2]
[405814708,1771333851743,-3049.49831659,0.00025,2]
[405814711,1771333851753,-7137.72032147,0.00025,2]
[405814712,1771333851762,-167.59841231,0.00025,2]
[405814714,1771333851771,-171.296778,0.00025,5]
[405814716,1771333851781,-531.0,0.00025,5]
[405814718,1771333851790,-2045.7,0.00025006,2]
[405814720,1771333851799,-151.0,0.00025113,11]
[405814723,1771333851809,-415805.46,0.000252,2]
[405814724,1771333851818,-325.08121142,0.00025389,10]
[405814726,1771333851827,-49615.12957072,0.0002539,2]
[405814728,1771333851837,-151.0,0.0002539,2]
[405814731,1771333851847,-151.0,0.0002539,2]
[405814733,1771333851856,-152.0,0.00025517,3]
[405814735,1771333851866,-4331.07,0.00025571,30]
[405814737,1771333851875,-327.96973244,0.000256,30]
[405814739,1771333851884,-435.55,0.00025776,7]
[405814740,1771333851893,-525.95039992,0.0002579,2]
[405814743,1771333851903,-150.0,0.0002589,2]
[405814745,1771333851912,-601.95167502,0.0002599,2]
[405814747,1771333851921,-4531.08257578,0.00026,2]
[405814749,1771333851930,-216.86508435,0.00026,2]
[405814751,1771333851939,-160.0,0.00026,7]
[405814753,1771333851948,-1145.15,0.000261,7]
[405814755,1771333851958,-415805.46,0.000261,2]
[405814757,1771333851967,-27526.37085843,0.000264,2]
[405814759,1771333851976,-1209.0,0.00026551,2]
[405814761,1771333851985,-2452.0,0.00026585,2]
[405814763,1771333851994,-5973.0,0.00026585,2]
[405814765,1771333852003,-360.45457926,0.00026667,30]
[405814767,1771333852013,-833.92535153,0.00026863,2]
[405814769,1771333852022,-152.0,0.00026923,4]
[405814771,1771333852031,-321.01,0.00026986,120]
[405814772,1771333852040,-23000.14654254,0.00027,3]
[405814775,1771333852050,-250.0,0.00027,2]
[405814776,1771333852059,-1036.49544833,0.00027,2]
[405814779,1771333852068,-530.0,0.00027,2]
[405814780,1771333852078,-469.56636817,0.00027,30]
[405814783,1771333852087,-2000.0,0.00027,2]
[405814785,1771333852097,-415805.46,0.00027,2]
[405814787,1771333852107,-457.741827,0.00027,2]
[405814789,1771333852117,-457.741827,0.00027,2]
[405814791,1771333852127,-457.741827,0.00027,2]
[405814793,1771333852137,-457.741827,0.00027,2]
[405814795,1771333852146,-167.064397,0.00027,2]
[405814797,1771333852155,-167.064397,0.00027,2]
[405814799,1771333852168,-167.064397,0.00027,2]
[405814801,1771333852178,-167.064397,0.00027,2]
[405814803,1771333852187,-151.0,0.00027,2]
[405814805,1771333852199,-151.0,0.00027,2]
[405814807,1771333852208,-151.0,0.00027,2]
[405814809,1771333852218,-275.978139,0.00027,2]
[405814811,1771333852228,-151.000017,0.00027,2]
[405814813,1771333852237,-151.0,0.00027,2]
[405814815,1771333852247,-2484.426364,0.0002701,2]
[405814817,1771333852256,-666.0,0.00027099,2]
[405814819,1771333852266,-3695.39,0.00027123,2]
[405814821,1771333852275,-2045.7,0.00027148,2]
[405814823,1771333852284,-150.0,0.00027185,2]
[405814825,1771333852294,-21771.72913636,0.000272,2]
[405814827,1771333852303,-655.93946488,0.000273,30]
[405814829,1771333852313,-150.0,0.00027369,2]
[405814831,1771333852323,-587.30769231,0.0002737,2]
[405814833,1771333852332,-466.22762301,0.0002737,2]
[405814835,1771333852342,-4119.22740333,0.0002739,2]
[405814837,1771333852351,-8138.58514695,0.0002739,2]
[405814839,1771333852360,-570.61120273,0.0002739,120]
[405814841,1771333852371,-4426.84811139,0.0002739,7]
[405814844,1771333852381,-1000.0,0.00027397,30]
[405814845,1771333852391,-1000.0,0.00027397,30]
[405814847,1771333852400,-1000.0,0.00027397,30]
[405814849,1771333852410,-1000.0,0.00027397,30]
[405814852,1771333852419,-1000.0,0.00027397,30]
[405814853,1771333852429,-1000.0,0.00027397,30]
[405814855,1771333852439,-274.16433771,0.00027397,30]
[405814857,1771333852448,-220.48493733,0.00027397,2]
[405814860,1771333852458,-1000.0,0.00027397,120]
[405814862,1771333852468,-1000.0,0.00027397,20]
[405814864,1771333852477,-300.0,0.00027397,2]
[405814866,1771333852486,-520.57,0.00027397,2]
[405814868,1771333852496,-151.0,0.00027397,2]
[405814870,1771333852505,-151.0,0.00027397,2]
[405814872,1771333852515,-1233.030186,0.00027397,2]
[405814874,1771333852526,-1233.030186,0.00027397,2]
[405814876,1771333852536,-1233.030186,0.00027397,2]
[405814878,1771333852546,-1233.030186,0.00027397,2]
[405814880,1771333852555,-1233.030186,0.00027397,2]
[405814882,1771333852564,-1233.030186,0.00027397,2]
[405814883,1771333852574,-1233.030186,0.00027397,2]
[405814884,1771333852584,-1233.030186,0.00027397,2]
[405814885,1771333852593,-896.23,0.00027397,2]
[405814886,1771333852603,-150.73098705,0.00027397,5]
[405814887,1771333852614,-151.0,0.000274,7]
[405814888,1771333852624,-2835.0,0.0002748,3]
[405814889,1771333852633,-201.6923428,0.000275,2]
[405814890,1771333852643,-550.97761121,0.000275,2]
[405814891,1771333852652,-1164.0,0.00027649,2]
[405814892,1771333852662,-3491.0,0.00027649,2]
[405814894,1771333852672,-1338.0,0.00027649,2]
[405814896,1771333852681,-617.0,0.00027649,2]
[405814898,1771333852690,-151.0,0.00027678,17]
[405814900,1771333852701,-415805.46,0.000277,2]
[405814903,1771333852711,-3240.0,0.00027763,2]
[405814905,1771333852721,-1145.15,0.000278,7]
[405814907,1771333852730,-500.0,0.00027808,120]
[405814909,1771333852739,-47773.49002844,0.00028,2]
[405814911,1771333852749,-160.0,0.00028,2]
[405814913,1771333852758,-150.0,0.00028,26]
[405814915,1771333852767,-1159.33833103,0.00028297,120]
[405814917,1771333852776,-152.0,0.00028328,5]
[405814919,1771333852785,-3357.45058791,0.00028385,2]
[405814921,1771333852795,-238.0,0.000284,120]
[405814923,1771333852804,-159.42,0.00028493,2]
[405814925,1771333852813,-289.0,0.00028508,10]
[405814927,1771333852823,-320.0,0.00028508,10]
[405814929,1771333852832,-150.0,0.00028544,2]
[405814931,1771333852842,-200.0,0.00028768,2]
[405814933,1771333852851,-360.45457926,0.00028889,30]
[405814935,1771333852862,-1701.6456684,0.00029,120]
[405814937,1771333852871,-503.56381156,0.00029,2]
[405814939,1771333852880,-150.0,0.00029,29]
[405814941,1771333852890,-983.90919732,0.000291,30]
[405814943,1771333852899,-1000.0,0.000292,30]
[405814945,1771333852908,-1000.0,0.000292,30]
[405814947,1771333852918,-1000.0,0.000292,30]
[405814949,1771333852927,-1000.0,0.000292,30]
[405814951,1771333852937,-1000.0,0.000292,30]
[405814953,1771333852947,-1000.0,0.000292,30]
[405814956,1771333852958,-1000.0,0.000292,30]
[405814958,1771333852967,-1000.0,0.000292,30]
[405814960,1771333852977,-506.851,0.000292,30]
[405814962,1771333852986,-4331.07,0.00029224,30]
[405814964,1771333852996,-2045.7,0.0002929,2]
[405814966,1771333853005,-1209.0,0.00029551,2]
[405814968,1771333853015,-435.55,0.00029552,30]
[405814970,1771333853025,-2452.0,0.00029585,2]
[405814972,1771333853034,-5973.0,0.00029585,2]
[405814974,1771333853044,-864.78058953,0.00029602,2]
[405814976,1771333853054,-152.0,0.00029733,6]
[405814978,1771333853064,-1000.0,0.00029755,2]
[405814980,1771333853074,-548.13,0.00029896,2]
[405814982,1771333853084,-485.621831,0.00029899,7]
[405814984,1771333853094,-485.621831,0.00029899,7]
[405814986,1771333853104,-485.621831,0.00029899,7]
[405814988,1771333853115,-485.621831,0.00029899,7]
[405814990,1771333853125,-151.0,0.00029899,7]
[405814992,1771333853136,-79120.88866613,0.000299,2]
[405814994,1771333853146,-382.0,0.000299,2]
[405814996,1771333853156,-382.0,0.000299,2]
[405814998,1771333853171,-382.0,0.000299,2]
[405815000,1771333853182,-382.0,0.000299,2]
[405815002,1771333853193,-382.0,0.000299,2]
[405815004,1771333853204,-382.0,0.000299,2]
[405815006,1771333853215,-382.0,0.000299,2]
[405815008,1771333853225,-382.0,0.000299,2]
[405815010,1771333853235,-382.0,0.000299,2]
[405815013,1771333853247,-382.0,0.000299,2]
[405815015,1771333853258,-382.0,0.000299,2]
[405815017,1771333853267,-382.0,0.000299,2]
[405815019,1771333853277,-382.0,0.000299,2]
[405815021,1771333853287,-382.0,0.000299,2]
[405815023,1771333853297,-485.6381351,0.000299,2]
[405815025,1771333853308,-150.0,0.00029971,2]
[405815027,1771333853318,-237.95780168,0.0002999,2]
[405815029,1771333853328,-181.25489891,0.0003,120]
[405815031,1771333853338,-8400.82432326,0.0003,3]
[405815033,1771333853347,-337.88466661,0.0003,120]
[405815035,1771333853358,-19928.72671892,0.0003,2]
[405815037,1771333853368,-311.96573233,0.0003,120]
[405815039,1771333853378,-2040.68809719,0.0003,120]
[405815041,1771333853388,-320.29407978,0.0003,2]
[405815043,1771333853399,-1823.34357867,0.0003,2]
[405815045,1771333853409,-400.0,0.0003,20]
[405815047,1771333853419,-515.68486469,0.0003,30]
[405815050,1771333853429,-163.5416964,0.0003,2]
[405815052,1771333853439,-256.46221764,0.0003,15]
[405815054,1771333853449,-207.0,0.0003,32]
[405815056,1771333853459,-160.0,0.0003,120]
[405815058,1771333853471,-500.0,0.0003,120]
[405815060,1771333853481,-152.73,0.0003,2]
[405815062,1771333853491,-152.73,0.0003,2]
[405815064,1771333853501,-152.73,0.0003,2]
[405815066,1771333853511,-152.73,0.0003,2]
[405815068,1771333853521,-152.73,0.0003,2]
[405815070,1771333853531,-152.73,0.0003,2]
[405815072,1771333853540,-152.73,0.0003,2]
[405815074,1771333853550,-152.73,0.0003,2]
[405815076,1771333853561,-152.73,0.0003,2]
[405815079,1771333853571,-152.73,0.0003,2]
[405815081,1771333853581,-152.73,0.0003,2]
[405815083,1771333853590,-152.73,0.0003,2]
[405815085,1771333853600,-152.73,0.0003,2]
[405815087,1771333853610,-152.73,0.0003,2]
[405815089,1771333853620,-152.73,0.0003,2]
[405815091,1771333853630,-152.73,0.0003,2]
[405815093,1771333853640,-152.73,0.0003,2]
[405815095,1771333853650,-152.73,0.0003,2]
[405815097,1771333853660,-152.73,0.0003,2]
[405815099,1771333853670,-152.73,0.0003,2]
[405815101,1771333853680,-152.73,0.0003,2]
[405815103,1771333853689,-152.73,0.0003,2]
[405815106,1771333853700,-152.73,0.0003,2]
[405815108,1771333853710,-152.73,0.0003,2]
[405815110,1771333853720,-152.73,0.0003,2]
[405815112,1771333853730,-152.73,0.0003,2]
[405815114,1771333853740,-152.73,0.0003,2]
[405815116,1771333853751,-152.73,0.0003,2]
[405815118,1771333853761,-152.73,0.0003,2]
[405815120,1771333853771,-152.73,0.0003,2]
[405815122,1771333853781,-152.73,0.0003,2]
[405815125,1771333853792,-152.73,0.0003,2]
[405815127,1771333853802,-152.73,0.0003,2]
[405815129,1771333853813,-152.73,0.0003,2]
[405815131,1771333853823,-152.73,0.0003,2]
[405815133,1771333853833,-152.73,0.0003,2]
[405815135,1771333853843,-152.73,0.0003,2]
[405815137,1771333853853,-152.73,0.0003,2]
[405815139,1771333853864,-152.73,0.0003,2]
[405815141,1771333853874,-152.73,0.0003,2]
[405815143,1771333853885,-152.73,0.0003,2]
[405815146,1771333853896,-152.73,0.0003,2]
[405815148,1771333853906,-152.73,0.0003,2]
[405815150,1771333853916,-152.73,0.0003,2]
[405815152,1771333853927,-152.73,0.0003,2]
[405815154,1771333853937,-152.73,0.0003,2]
[405815156,1771333853947,-152.73,0.0003,2]
[405815158,1771333853957,-1000.0,0.00030028,2]
[405815160,1771333853968,-1077.09677605,0.0003013,2]
[405815162,1771333853977,-182.82612915,0.0003013,120]
[405815164,1771333853987,-202.17259899,0.0003013,30]
[405815167,1771333853998,-13895.31371931,0.0003013,2]
[405815169,1771333854007,-636.08323306,0.0003013,2]
[405815171,1771333854018,-673.17206975,0.0003013,120]
[405815173,1771333854027,-202.35392672,0.0003013,2]
[405815175,1771333854038,-7755.83520455,0.0003013,2]
[405815177,1771333854048,-162.51939149,0.0003013,120]
[405815179,1771333854059,-166.58894592,0.0003013,20]
[405815181,1771333854069,-300.0,0.0003013,30]
[405815184,1771333854080,-1000.0,0.00030137,120]
[405815186,1771333854089,-282.320143,0.00030137,7]
[405815188,1771333854099,-282.320143,0.00030137,7]
[405815190,1771333854109,-282.320143,0.00030137,7]
[405815192,1771333854120,-282.320143,0.00030137,7]
[405815194,1771333854130,-282.320143,0.00030137,7]
[405815196,1771333854140,-282.320143,0.00030137,7]
[405815198,1771333854150,-282.320143,0.00030137,7]
[405815200,1771333854164,-282.320143,0.00030137,7]
[405815202,1771333854174,-282.320143,0.00030137,7]
[405815204,1771333854184,-282.320143,0.00030137,7]
[405815206,1771333854195,-282.320143,0.00030137,7]
[405815208,1771333854206,-282.320143,0.00030137,7]
[405815210,1771333854216,-896.23,0.00030137,2]
[405815212,1771333854226,-14069.22723666,0.000302,2]
[405815214,1771333854237,-222.0791225,0.000302,120]
[405815216,1771333854246,-189.36637923,0.00030214,2]
[405815218,1771333854256,-151.0,0.00030243,24]
[405815220,1771333854266,-1000.0,0.00030302,7]
[405815222,1771333854275,-169.26,0.00030411,120]
[405815224,1771333854285,-1000.0,0.00030576,7]
[405815226,1771333854294,-842.0,0.00030578,3]
[405815229,1771333854304,-1164.0,0.00030649,2]
[405815231,1771333854314,-3491.0,0.00030649,2]
[405815233,1771333854323,-1338.0,0.00030649,2]
[405815235,1771333854333,-617.0,0.00030649,2]
[405815237,1771333854343,-947.22,0.000307,30]
[405815239,1771333854353,-250.0,0.000308,30]
[405815241,1771333854363,-1613.95742232,0.0003084,2]
[405815243,1771333854373,-1000.0,0.0003085,7]
[405815245,1771333854382,-79262.67165379,0.0003095,2]
[405815247,1771333854394,-1145.15,0.00031,7]
[405815249,1771333854404,-5127.38595,0.00031,3]
[405815251,1771333854414,-344.05321277,0.00031,5]
[405815254,1771333854424,-308.91959294,0.00031,120]
[405815256,1771333854434,-51723.36233225,0.00031,2]
[405815258,1771333854443,-2448.44604378,0.00031,30]
[405815260,1771333854453,-160.0,0.00031,120]
[405815262,1771333854462,-160.0,0.00031,3]
[405815264,1771333854471,-360.45457926,0.00031111,30]
[405815266,1771333854481,-1000.0,0.00031124,7]
[405815268,1771333854491,-152.0,0.00031138,7]
[405815270,1771333854501,-1000.0,0.00031398,7]
[405815272,1771333854511,-376.23637064,0.000314,30]
[405815274,1771333854520,-200.0,0.000314,120]
[405815276,1771333854529,-2045.7,0.00031432,2]
[405815277,1771333854539,-150.0,0.0003147,2]
[405815278,1771333854549,-197.96784503,0.000315,2]
[405815279,1771333854559,-150.0,0.000315,2]
[405815280,1771333854568,-219133.16403627,0.000315,120]
[405815281,1771333854578,-2835.0,0.00031538,3]
[405815282,1771333854588,-842.0,0.00031538,3]
[405815283,1771333854598,-1000.0,0.00031672,7]
[405815284,1771333854607,-1000.0,0.00031946,7]
[405815286,1771333854617,-5000.0,0.00032,3]
[405815289,1771333854627,-3511.87635369,0.00032,120]
[405815291,1771333854637,-160.0,0.00032,120]
[405815293,1771333854646,-500.0,0.00032,120]
[405815295,1771333854656,-44490.0,0.00032161,20]
[405815297,1771333854665,-1000.0,0.0003222,7]
[405815299,1771333854675,-897.04001365,0.000323,2]
[405815301,1771333854685,-514.41469683,0.00032341,2]
[405815303,1771333854695,-1000.0,0.00032494,7]
[405815305,1771333854705,-152.0,0.00032543,8]
[405815307,1771333854715,-1209.0,0.00032551,2]
[405815309,1771333854724,-2452.0,0.00032585,2]
[405815311,1771333854734,-5973.0,0.00032585,2]
[405815313,1771333854743,-550.98049433,0.00032725,7]
[405815315,1771333854753,-1000.0,0.00032768,7]
[405815317,1771333854762,-947.22,0.000328,30]
[405815319,1771333854772,-4846.03186328,0.000328,2]
[405815322,1771333854782,-151.0,0.00032808,35]
[405815324,1771333854792,-1725.26984079,0.0003287,4]
[405815353,1771333855053,-500.0,0.00032876,30]
[405815356,1771333855063,-500.0,0.00032876,30]
[405815358,1771333855073,-464.57853443,0.00032876,30]
[405815360,1771333855083,-4331.07,0.00032877,30]
[405815362,1771333855093,-1000.0,0.00032877,120]
[405815364,1771333855102,-151.0,0.00032877,31]
[405815366,1771333855114,-151.0,0.00032877,31]
[405815368,1771333855124,-151.0,0.00032877,31]
[405815370,1771333855134,-151.0,0.00032877,31]
[405815372,1771333855143,-151.0,0.00032877,31]
[405815374,1771333855154,-151.0,0.00032877,31]
[405815376,1771333855169,-151.0,0.00032877,31]
[405815378,1771333855179,-151.0,0.00032877,31]
[405815380,1771333855189,-151.0,0.00032877,31]
[405815382,1771333855199,-151.0,0.00032877,31]
[405815384,1771333855211,-151.0,0.00032877,31]
[405815385,1771333855220,-151.0,0.00032877,31]
[405815388,1771333855231,-896.23,0.00032877,2]
[405815390,1771333855240,-502.17799391,0.00032877,2]
[405815392,1771333855250,-2380.71,0.000329,2]
[405815394,1771333855260,-51465.77511976,0.00033,2]
[405815396,1771333855271,-26464.79341974,0.00033,2]
[405815398,1771333855281,-2816.5856001,0.00033,120]
[405815399,1771333855291,-160.0,0.00033,120]
[405815402,1771333855304,-560.553295,0.00033,14]
[405815404,1771333855316,-200.0,0.00033,120]
[405815406,1771333855329,-400.0,0.00033,14]
[405815408,1771333855345,-415805.46,0.00033,2]
[405815411,1771333855361,-1000.0,0.00033042,7]
[405815412,1771333855373,-150.0,0.00033043,2]
[405815414,1771333855384,-399.8,0.000331,14]
[405815416,1771333855397,-500.0,0.00033115,120]